fUSD/lending_fUSD_20240301
["ID","MTS","AMOUNT","RATE_DAILY","PERIOD"]
[315966947,1709305890081,-500.0,0.00022684,2]
[315966948,1709305890090,-500.0,0.00022684,2]
[315966949,1709305890099,-500.0,0.00022684,2]
[315966950,1709305890109,-505.03,0.00022684,2]
[315966951,1709305890119,-500.0,0.00022684,2]
[315966952,1709305890130,-500.0,0.00022684,2]
[315966953,1709305890139,-747.13,0.00022684,2]
[315966954,1709305890150,-500.0,0.00022684,2]
[315966955,1709305890160,-534.78,0.00022684,2]
[315966956,1709305890169,-1220.65,0.00022684,2]
[315966957,1709305890179,-740.01,0.00022684,2]
[315966958,1709305890188,-1099.67,0.00022684,2]
[315966959,1709305890197,-500.0,0.00022684,2]
[315966960,1709305890207,-674.07,0.00022684,2]
[315966961,1709305890217,-5580.51,0.00022684,2]
[315966962,1709305890226,-500.0,0.00022684,2]
[315966963,1709305890235,-5289.69,0.00022684,2]
[315966964,1709305890244,-681.13,0.00022684,2]
[315966965,1709305890253,-4403.01,0.00022684,2]
[315966966,1709305890262,-1257.15,0.00022684,2]
[315966967,1709305890274,-500.0,0.00022684,2]
[315966968,1709305890284,-857.05,0.00022684,2]
[315966969,1709305890293,-590.84,0.00022684,2]
[315966970,1709305890302,-1083.41,0.00022684,2]
[315966971,1709305890311,-500.0,0.00022684,2]
[315966972,1709305890321,-755.22,0.00022684,2]
[315966973,1709305890330,-500.0,0.00022684,2]
[315966974,1709305890340,-500.0,0.00022684,2]
[315966975,1709305890351,-500.0,0.00022684,2]
[315966976,1709305890361,-500.0,0.00022684,2]
[315966977,1709305890371,-1214.42,0.00022684,2]
[315966978,1709305890380,-500.0,0.00022684,2]
[315966979,1709305890391,-3690.87,0.00022684,2]
[315966980,1709305890401,-500.0,0.00022684,2]
[315966981,1709305890411,-3371.79,0.00022684,2]
[315966982,1709305890421,-1351.2,0.00022684,2]
[315966983,1709305890430,-803.59,0.00022684,2]
[315966984,1709305890442,-646.81,0.00022684,2]
[315966985,1709305890452,-500.0,0.00022684,2]
[315966986,1709305890461,-500.0,0.00022684,2]
[315966987,1709305890470,-555.00117154,0.00022684,2]
[315966988,1709305890479,-726.61,0.00022684,2]
[315966989,1709305890489,-727.86,0.00022684,2]
[315966990,1709305890499,-500.0,0.00022684,2]
[315966991,1709305890508,-2141.73,0.00022684,2]
[315966992,1709305890518,-500.0,0.00022684,2]
[315966993,1709305890530,-559.99,0.00022684,2]
[315966994,1709305890539,-151.0,0.00022684,7]
[315966995,1709305890548,-500.0,0.00022684,2]
[315966996,1709305890557,-1036.68,0.00022684,2]
[315966997,1709305890567,-2298.42,0.00022684,2]
[315966998,1709305890576,-500.0,0.00022684,2]
[315966999,1709305890585,-1315.55,0.00022684,2]
[315967000,1709305890595,-500.0,0.00022684,2]
[315967001,1709305890604,-500.0,0.00022684,2]
[315967002,1709305890613,-870.51,0.00022684,2]
[315967003,1709305890623,-282.35683097,0.00022684,7]
[315967004,1709305890633,-693.44,0.00022684,2]
[315967005,1709305890642,-500.0,0.00022684,2]
[315967006,1709305890652,-895.66,0.00022684,2]
[315967007,1709305890661,-735.48,0.00022684,2]
[315967008,1709305890670,-5334.59,0.00022684,2]
[315967009,1709305890680,-881.39,0.00022684,2]
[315967010,1709305890690,-1134.58,0.00022684,2]
[315967011,1709305890700,-1102.85,0.00022684,2]
[315967012,1709305890710,-500.0,0.00022684,2]
[315967013,1709305890719,-772.72,0.00022684,2]
[315967014,1709305890728,-3217.72,0.00022684,2]
[315967015,1709305890738,-674.03,0.00022684,2]
[315967016,1709305890747,-151.0,0.00022684,7]
[315967017,1709305890757,-734.83,0.00022684,2]
[315967018,1709305890766,-4071.64,0.00022684,2]
[315967019,1709305890777,-151.0,0.00022684,7]
[315967020,1709305890787,-500.0,0.00022684,2]
[315967021,1709305890797,-1336.48,0.00022684,2]
[315967022,1709305890807,-500.0,0.00022684,2]
[315967023,1709305890818,-6633.72,0.00022684,2]
[315967024,1709305890827,-2034.0,0.00022684,2]
[315967025,1709305890836,-500.0,0.00022684,2]
[315967026,1709305890847,-653.13,0.00022684,2]
[315967027,1709305890857,-1007.25,0.00022684,2]
[315967028,1709305890870,-500.0,0.00022684,2]
[315967029,1709305890879,-1199.02,0.00022684,2]
[315967030,1709305890889,-1531.1,0.00022684,2]
[315967031,1709305890898,-1053.76,0.00022684,2]
[315967032,1709305890907,-7052.62,0.00022684,2]
[315967033,1709305890916,-880.94,0.00022684,2]
[315967034,1709305890929,-296.997032,0.00022684,7]
[315967035,1709305890939,-793.6,0.00022684,2]
[315967036,1709305890948,-4970.95,0.00022684,2]
[315967037,1709305890958,-447.58889187,0.00022684,2]
[315967038,1709305890968,-296.997032,0.00022684,7]
[315967039,1709305890977,-567.08,0.00022684,2]
[315967040,1709305890987,-500.0,0.00022684,2]
[315967041,1709305890997,-1404.44,0.00022684,2]
[315967042,1709305891008,-583.57,0.00022684,2]
[315967043,1709305891017,-1716.84,0.00022684,2]
[315967044,1709305891029,-1301.46,0.00022684,2]
[315967045,1709305891039,-632.56,0.00022684,2]
[315967046,1709305891050,-844.86,0.00022684,2]
[315967047,1709305891059,-1873.71,0.00022684,2]
[315967048,1709305891069,-500.0,0.00022684,2]
[315967049,1709305891079,-1094.87,0.00022684,2]
[315967050,1709305891088,-543.71,0.00022684,2]
[315967051,1709305891097,-1348.78,0.00022684,2]
[315967052,1709305891106,-1253.26,0.00022684,2]
[315967053,1709305891116,-517.7,0.00022684,2]
[315967054,1709305891129,-829.71,0.00022684,2]
[315967055,1709305891139,-1978.87,0.00022684,2]
[315967056,1709305891148,-500.0,0.00022684,2]
[315967057,1709305891159,-500.0,0.00022684,2]
[315967058,1709305891169,-5780.97,0.00022684,2]
[315967059,1709305891179,-500.0,0.00022684,2]
[315967060,1709305891189,-1128.32,0.00022684,2]
[315967061,1709305891200,-1360.34,0.00022684,2]
[315967062,1709305891210,-595.79,0.00022684,2]
[315967063,1709305891220,-503.67,0.00022684,2]
[315967064,1709305891230,-900.35,0.00022684,2]
[315967065,1709305891239,-543.27,0.00022684,2]
[315967066,1709305891249,-500.0,0.00022684,2]
[315967067,1709305891261,-500.0,0.00022684,2]
[315967068,1709305891270,-655.83,0.00022684,2]
[315967069,1709305891282,-540.91,0.00022684,2]
[315967070,1709305891292,-758.75,0.00022684,2]
[315967071,1709305891302,-1186.06,0.00022684,2]
[315967072,1709305891311,-1195.58,0.00022684,2]
[315967073,1709305891321,-817.92,0.00022684,2]
[315967074,1709305891331,-1397.92,0.00022684,2]
[315967075,1709305891342,-947.48,0.00022684,2]
[315967076,1709305891352,-500.0,0.00022684,2]
[315967077,1709305891363,-889.25,0.00022684,2]
[315967078,1709305891375,-500.0,0.00022684,2]
[315967079,1709305891384,-558.86,0.00022684,2]
[315967080,1709305891395,-654.16,0.00022684,2]
[315967081,1709305891405,-508.24,0.00022684,2]
[315967082,1709305891414,-886.02,0.00022684,2]
[315967083,1709305891424,-928.68,0.00022684,2]
[315967084,1709305891434,-500.0,0.00022684,2]
[315967085,1709305891445,-1331.87,0.00022684,2]
[315967086,1709305891454,-500.0,0.00022684,2]
[315967087,1709305891464,-2216.85,0.00022684,2]
[315967088,1709305891473,-1288.14,0.00022684,2]
[315967089,1709305891483,-1254.88,0.00022684,2]
[315967090,1709305891493,-500.0,0.00022684,2]
[315967091,1709305891503,-782.75,0.00022684,2]
[315967092,1709305891514,-500.0,0.00022684,2]
[315967093,1709305891526,-641.49,0.00022684,2]
[315967094,1709305891536,-1350.32,0.00022684,2]
[315967095,1709305891546,-985.98,0.00022684,2]
[315967096,1709305891555,-1905.1,0.00022684,2]
[315967097,1709305891565,-1197.98,0.00022684,2]
[315967098,1709305891575,-500.0,0.00022684,2]
[315967099,1709305891585,-500.0,0.00022684,2]
[315967100,1709305891595,-1184.73,0.00022684,2]
[315967101,1709305891604,-500.0,0.00022684,2]
[315967102,1709305891614,-500.0,0.00022684,2]
[315967103,1709305891624,-934.94,0.00022684,2]
[315967104,1709305891633,-3329.36,0.00022684,2]
[315967105,1709305891645,-1905.59,0.00022684,2]
[315967106,1709305891654,-500.0,0.00022684,2]
[315967107,1709305891663,-500.0,0.00022684,2]
[315967108,1709305891673,-830.59,0.00022684,2]
[315967109,1709305891682,-555.78,0.00022684,2]
[315967110,1709305891692,-528.51,0.00022684,2]
[315967111,1709305891702,-1574.86,0.00022684,2]
[315967112,1709305891711,-1148.67,0.00022684,2]
[315967113,1709305891721,-500.0,0.00022684,2]
[315967114,1709305891730,-924.56,0.00022684,2]
[315967115,1709305891740,-765.51,0.00022684,2]
[315967116,1709305891750,-1684.51,0.00022684,2]
[315967117,1709305891760,-500.0,0.00022684,2]
[315967118,1709305891771,-604.09,0.00022684,2]
[315967119,1709305891784,-500.0,0.00022684,2]
[315967120,1709305891794,-878.61,0.00022684,2]
[315967121,1709305891804,-873.4,0.00022684,2]
[315967122,1709305891813,-847.29,0.00022684,2]
[315967123,1709305891823,-983.47,0.00022684,2]
[315967124,1709305891833,-1114.24,0.00022684,2]
[315967125,1709305891843,-721.29,0.00022684,2]
[315967126,1709305891853,-1667.9,0.00022684,2]
[315967127,1709305891862,-500.0,0.00022684,2]
[315967128,1709305891872,-1455.8,0.00022684,2]
[315967129,1709305891881,-500.0,0.00022684,2]
[315967130,1709305891891,-500.0,0.00022684,2]
[315967131,1709305891900,-500.0,0.00022684,2]
[315967132,1709305891910,-500.0,0.00022684,2]
[315967133,1709305891919,-500.0,0.00022684,2]
[315967134,1709305891929,-631.77,0.00022684,2]
[315967135,1709305891940,-5562.59,0.00022684,2]
[315967136,1709305891950,-500.0,0.00022684,2]
[315967137,1709305891959,-500.0,0.00022684,2]
[315967138,1709305891970,-5893.85,0.00022684,2]
[315967139,1709305891980,-2262.48,0.00022684,2]
[315967140,1709305891990,-500.0,0.00022684,2]
[315967141,1709305891999,-500.0,0.00022684,2]
[315967142,1709305892009,-506.63,0.00022684,2]
[315967143,1709305892019,-500.0,0.00022684,2]
[315967144,1709305892030,-500.0,0.00022684,2]
[315967145,1709305892040,-500.0,0.00022684,2]
[315967146,1709305892050,-634.29,0.00022684,2]
[315967147,1709305892059,-724.63,0.00022684,2]
[315967148,1709305892069,-500.0,0.00022684,2]
[315967149,1709305892079,-7099.15,0.00022684,2]
[315967150,1709305892089,-557.5,0.00022684,2]
[315967151,1709305892099,-500.0,0.00022684,2]
[315967152,1709305892109,-500.0,0.00022684,2]
[315967153,1709305892119,-900.57,0.00022684,2]
[315967154,1709305892129,-1628.31,0.00022684,2]
[315967155,1709305892139,-500.0,0.00022684,2]
[315967156,1709305892150,-1308.47,0.00022684,2]
[315967157,1709305892160,-510.08,0.00022684,2]
[315967158,1709305892170,-5514.48,0.00022684,2]
[315967159,1709305892180,-500.0,0.00022684,2]
[315967160,1709305892190,-500.0,0.00022684,2]
[315967161,1709305892200,-1631.28,0.00022684,2]
[315967162,1709305892213,-1607.91,0.00022684,2]
[315967163,1709305892448,-1979.13,0.00022684,2]
[315967164,1709305892460,-920.03,0.00022684,2]
[315967165,1709305892470,-500.0,0.00022684,2]
[315967166,1709305892480,-500.0,0.00022684,2]
[315967167,1709305892490,-500.0,0.00022684,2]
[315967168,1709305892500,-691.36,0.00022684,2]
[315967169,1709305892509,-500.0,0.00022684,2]
[315967170,1709305892519,-500.0,0.00022684,2]
[315967171,1709305892531,-567.34,0.00022684,2]
[315967172,1709305892540,-500.0,0.00022684,2]
[315967173,1709305892550,-500.0,0.00022684,2]
[315967174,1709305892560,-500.0,0.00022684,2]
[315967175,1709305892569,-150.0,0.0002269,2]
[315967176,1709305892578,-150.0,0.00022719,2]
[315967177,1709305892587,-150.0,0.00022724,2]
[315967178,1709305892597,-199.69,0.00022725,2]
[315967179,1709305892606,-204.92,0.00022725,2]
[315967180,1709305892615,-150.0,0.00022729,2]
[315967181,1709305892624,-150.0,0.00022736,2]
[315967182,1709305892634,-150.0,0.00022736,2]
[315967183,1709305892643,-500.0,0.00022738,2]
[315967184,1709305892653,-186.88,0.0002274,2]
[315967185,1709305892663,-168.63,0.0002274,2]
[315967186,1709305892672,-150.0,0.00022741,2]
[315967187,1709305892681,-150.0,0.00022742,2]
[315967188,1709305892690,-500.0,0.00022745,2]
[315967189,1709305892700,-150.0,0.00022745,2]
[315967190,1709305892709,-150.0,0.00022747,2]
[315967191,1709305892718,-150.0,0.0002275,2]
[315967192,1709305892727,-150.0,0.00022756,2]
[315967193,1709305892736,-150.0,0.0002276,2]
[315967194,1709305892746,-150.0,0.00022762,2]
[315967195,1709305892755,-150.0,0.00022764,2]
[315967196,1709305892764,-150.0,0.00022765,2]
[315967197,1709305892774,-150.0,0.00022766,2]
[315967198,1709305892787,-150.0,0.00022767,2]
[315967199,1709305892796,-150.0,0.00022769,2]
[315967200,1709305892806,-21450.24608991,0.0002277,2]
[315967201,1709305892815,-3884.36727329,0.0002277,2]
[315967202,1709305892824,-150.0,0.00022773,2]
[315967203,1709305892833,-150.0,0.00022782,2]
[315967204,1709305892843,-150.0,0.00022787,2]
[315967205,1709305892852,-150.0,0.00022791,2]
[315967206,1709305892861,-150.0,0.00022793,2]
[315967207,1709305892870,-2369.44417506,0.00022794,3]
[315967208,1709305892879,-316.30815836,0.00022794,2]
[315967209,1709305892888,-500.0,0.00022794,2]
[315967210,1709305892897,-500.0,0.00022794,2]
[315967211,1709305892906,-500.0,0.00022794,2]
[315967212,1709305892915,-500.0,0.00022794,2]
[315967213,1709305892924,-500.0,0.00022794,2]
[315967214,1709305892933,-500.0,0.00022794,2]
[315967215,1709305892942,-178.57,0.00022794,2]
[315967216,1709305892951,-500.0,0.00022794,2]
[315967217,1709305892961,-500.0,0.00022794,2]
[315967218,1709305892970,-500.0,0.00022794,2]
[315967219,1709305892979,-500.0,0.00022794,2]
[315967220,1709305892988,-583.67574709,0.00022794,2]
[315967221,1709305892997,-500.0,0.00022794,2]
[315967222,1709305893006,-500.0,0.00022794,2]
[315967223,1709305893015,-906.74,0.00022794,2]
[315967224,1709305893024,-500.0,0.00022794,2]
[315967225,1709305893036,-500.0,0.00022794,2]
[315967226,1709305893048,-500.0,0.00022794,2]
[315967227,1709305893058,-500.0,0.00022794,2]
[315967228,1709305893067,-500.0,0.00022794,2]
[315967229,1709305893076,-455.35601291,0.00022794,2]
[315967230,1709305893086,-500.0,0.00022794,2]
[315967231,1709305893095,-500.0,0.00022794,2]
[315967232,1709305893105,-500.0,0.00022794,2]
[315967233,1709305893114,-151.0,0.00022794,7]
[315967234,1709305893123,-500.0,0.00022794,2]
[315967235,1709305893132,-500.0,0.00022794,2]
[315967236,1709305893141,-500.0,0.00022794,2]
[315967237,1709305893150,-500.0,0.00022794,2]
[315967238,1709305893159,-578.25,0.00022794,2]
[315967239,1709305893169,-500.0,0.00022794,2]
[315967240,1709305893178,-645.02,0.00022794,2]
[315967241,1709305893187,-500.0,0.00022794,2]
[315967242,1709305893197,-500.0,0.00022794,2]
[315967243,1709305893206,-751.68,0.00022794,2]
[315967244,1709305893215,-500.0,0.00022794,2]
[315967245,1709305893225,-500.0,0.00022794,2]
[315967246,1709305893235,-500.0,0.00022794,2]
[315967247,1709305893244,-500.0,0.00022794,2]
[315967248,1709305893254,-500.0,0.00022794,2]
[315967249,1709305893264,-500.0,0.00022794,2]
[315967250,1709305893274,-500.0,0.00022794,2]
[315967251,1709305893288,-971.26,0.00022794,2]
[315967252,1709305893298,-500.0,0.00022794,2]
[315967253,1709305893307,-919.98,0.00022794,2]
[315967254,1709305893316,-500.0,0.00022794,2]
[315967255,1709305893326,-573.56,0.00022794,2]
[315967256,1709305893336,-500.0,0.00022794,2]
[315967257,1709305893348,-500.0,0.00022794,2]
[315967258,1709305893359,-500.0,0.00022794,2]
[315967259,1709305893369,-492.51514737,0.00022794,2]
[315967260,1709305893379,-500.0,0.00022794,2]
[315967261,1709305893389,-500.0,0.00022794,2]
[315967262,1709305893399,-737.77,0.00022794,2]
[315967263,1709305893408,-500.0,0.00022794,2]
[315967264,1709305893417,-500.0,0.00022794,2]
[315967265,1709305893428,-500.0,0.00022794,2]
[315967266,1709305893438,-500.0,0.00022794,2]
[315967267,1709305893448,-507.3783369,0.00022794,2]
[315967268,1709305893458,-500.0,0.00022794,2]
[315967269,1709305893468,-782.71,0.00022794,2]
[315967270,1709305893482,-500.0,0.00022794,2]
[315967271,1709305893491,-500.0,0.00022794,2]
[315967272,1709305893502,-742.5,0.00022794,2]
[315967273,1709305893512,-500.0,0.00022794,2]
[315967274,1709305893521,-500.0,0.00022794,2]
[315967275,1709305893533,-500.0,0.00022794,2]
[315967276,1709305893543,-516.61,0.00022794,2]
[315967277,1709305893552,-500.0,0.00022794,2]
[315967278,1709305893562,-500.0,0.00022794,2]
[315967279,1709305893572,-500.0,0.00022794,2]
[315967280,1709305893581,-500.0,0.00022794,2]
[315967281,1709305893591,-500.0,0.00022794,2]
[315967282,1709305893600,-500.0,0.00022794,2]
[315967283,1709305893610,-707.6,0.00022794,2]
[315967284,1709305893620,-780.2,0.00022794,2]
[315967285,1709305893629,-500.0,0.00022794,2]
[315967286,1709305893639,-500.0,0.00022794,2]
[315967287,1709305893649,-500.0,0.00022794,2]
[315967288,1709305893658,-500.0,0.00022794,2]
[315967289,1709305893668,-500.0,0.00022794,2]
[315967290,1709305893678,-500.0,0.00022794,2]
[315967291,1709305893687,-504.09,0.00022794,2]
[315967292,1709305893697,-500.0,0.00022794,2]
[315967293,1709305893707,-500.0,0.00022794,2]
[315967294,1709305893717,-500.0,0.00022794,2]
[315967295,1709305893726,-600.18,0.00022794,2]
[315967296,1709305893736,-500.0,0.00022794,2]
[315967297,1709305893746,-500.0,0.00022794,2]
[315967298,1709305893756,-500.0,0.00022794,2]
[315967299,1709305893766,-546.1,0.00022794,2]
[315967300,1709305893776,-532.41,0.00022794,2]
[315967301,1709305893787,-734.54,0.00022794,2]
[315967302,1709305893797,-529.48,0.00022794,2]
[315967303,1709305893807,-500.0,0.00022794,2]
[315967304,1709305893816,-500.0,0.00022794,2]
[315967305,1709305893826,-500.0,0.00022794,2]
[315967306,1709305893835,-639.25,0.00022794,2]
[315967307,1709305893845,-500.0,0.00022794,2]
[315967308,1709305893855,-584.03,0.00022794,2]
[315967309,1709305893865,-500.0,0.00022794,2]
[315967310,1709305893875,-550.42,0.00022794,2]
[315967311,1709305893885,-514.22,0.00022794,2]
[315967312,1709305893895,-257.93824535,0.00022794,2]
[315967313,1709305893904,-500.0,0.00022794,2]
[315967314,1709305893913,-500.0,0.00022794,2]
[315967315,1709305893923,-613.29,0.00022794,2]
[315967316,1709305893934,-500.0,0.00022794,2]
[315967317,1709305893944,-500.0,0.00022794,2]
[315967318,1709305893953,-518.84,0.00022794,2]
[315967319,1709305893962,-500.0,0.00022794,2]
[315967320,1709305893971,-273.28,0.00022794,2]
[315967321,1709305893980,-500.0,0.00022794,2]
[315967322,1709305893989,-500.0,0.00022794,2]
[315967323,1709305893998,-500.0,0.00022794,2]
[315967324,1709305894007,-607.56,0.00022794,2]
[315967325,1709305894016,-500.0,0.00022794,2]
[315967326,1709305894026,-999.79,0.00022794,2]
[315967327,1709305894038,-772.36,0.00022794,2]
[315967328,1709305894047,-500.0,0.00022794,2]
[315967329,1709305894056,-500.0,0.00022794,2]
[315967330,1709305894065,-500.0,0.00022794,2]
[315967331,1709305894075,-500.0,0.00022794,2]
[315967332,1709305894085,-445.69998054,0.00022794,2]
[315967333,1709305894094,-502.86,0.00022794,2]
[315967334,1709305894104,-604.84437345,0.00022794,2]
[315967335,1709305894113,-795.21,0.00022794,2]
[315967336,1709305894122,-500.0,0.00022794,2]
[315967337,1709305894132,-1168.03,0.00022794,2]
[315967338,1709305894142,-151.0,0.00022794,2]
[315967339,1709305894152,-500.0,0.00022794,2]
[315967340,1709305894161,-500.0,0.00022794,2]
[315967341,1709305894171,-500.0,0.00022794,2]
[315967342,1709305894181,-500.0,0.00022794,2]
[315967343,1709305894191,-788.32,0.00022794,2]
[315967344,1709305894200,-544.82,0.00022794,2]
[315967345,1709305894210,-500.0,0.00022794,2]
[315967346,1709305894219,-500.0,0.00022794,2]
[315967347,1709305894229,-500.0,0.00022794,2]
[315967348,1709305894238,-500.0,0.00022794,2]
[315967349,1709305894247,-500.0,0.00022794,2]
[315967350,1709305894256,-500.0,0.00022794,2]
[315967351,1709305894266,-500.0,0.00022794,2]
[315967352,1709305894275,-731.75,0.00022794,2]
[315967353,1709305894289,-500.0,0.00022794,2]
[315967354,1709305894299,-500.0,0.00022794,2]
[315967355,1709305894309,-500.0,0.00022794,2]
[315967356,1709305894318,-500.0,0.00022794,2]
[315967357,1709305894329,-500.0,0.00022794,2]
[315967358,1709305894339,-989.93,0.00022794,2]
[315967359,1709305894349,-1062.73,0.00022794,2]
[315967360,1709305894358,-500.0,0.00022794,2]
[315967361,1709305894370,-823.27,0.00022794,2]
[315967362,1709305894380,-500.0,0.00022794,2]
[315967363,1709305894390,-500.0,0.00022794,2]
[315967364,1709305894399,-500.0,0.00022794,2]
[315967365,1709305894410,-500.0,0.00022794,2]
[315967366,1709305894419,-500.0,0.00022794,2]
[315967367,1709305894429,-315.84,0.00022794,2]
[315967368,1709305894438,-791.01,0.00022794,2]
[315967369,1709305894449,-500.0,0.00022794,2]
[315967370,1709305894459,-500.0,0.00022794,2]
[315967371,1709305894469,-1594.75,0.00022794,2]
[315967372,1709305894479,-155.68,0.00022794,2]
[315967373,1709305894489,-345.59820051,0.00022794,2]
[315967374,1709305894500,-500.0,0.00022794,2]
[315967375,1709305894510,-505.03,0.00022794,2]
[315967376,1709305894519,-619.73320881,0.00022794,2]
[315967377,1709305894530,-747.13,0.00022794,2]
[315967378,1709305894540,-500.0,0.00022794,2]
[315967379,1709305894549,-534.78,0.00022794,2]
[315967380,1709305894558,-1220.65,0.00022794,2]
[315967381,1709305894568,-740.01,0.00022794,2]
[315967382,1709305894577,-1099.67,0.00022794,2]
[315967383,1709305894587,-500.0,0.00022794,2]
[315967384,1709305894596,-674.07,0.00022794,2]
[315967385,1709305894605,-5580.51,0.00022794,2]
[315967386,1709305894614,-500.0,0.00022794,2]
[315967387,1709305894623,-5289.69,0.00022794,2]
[315967388,1709305894632,-681.13,0.00022794,2]
[315967389,1709305894642,-4403.01,0.00022794,2]
[315967390,1709305894652,-1257.15,0.00022794,2]
[315967391,1709305894661,-500.0,0.00022794,2]
[315967392,1709305894670,-857.05,0.00022794,2]
[315967393,1709305894680,-590.84,0.00022794,2]
[315967394,1709305894689,-1083.41,0.00022794,2]
[315967395,1709305894699,-500.0,0.00022794,2]
[315967396,1709305894708,-755.22,0.00022794,2]
[315967397,1709305894718,-500.0,0.00022794,2]
[315967398,1709305894728,-263.68178749,0.00022794,2]
[315967399,1709305894738,-592.80502375,0.00022794,2]
[315967400,1709305894747,-466.30649032,0.00022794,2]
[315967401,1709305894757,-1214.42,0.00022794,2]
[315967402,1709305894766,-500.0,0.00022794,2]
[315967403,1709305894777,-3690.87,0.00022794,2]
[315967404,1709305894786,-500.0,0.00022794,2]
[315967405,1709305894796,-3371.79,0.00022794,2]
[315967406,1709305894806,-1351.2,0.00022794,2]
[315967407,1709305894815,-803.59,0.00022794,2]
[315967408,1709305894825,-646.81,0.00022794,2]
[315967409,1709305894834,-500.0,0.00022794,2]
[315967410,1709305894843,-500.0,0.00022794,2]
[315967411,1709305894853,-726.61,0.00022794,2]
[315967412,1709305894863,-727.86,0.00022794,2]
[315967413,1709305894872,-500.0,0.00022794,2]
[315967414,1709305894881,-2141.73,0.00022794,2]
[315967415,1709305894890,-500.0,0.00022794,2]
[315967416,1709305894900,-559.99,0.00022794,2]
[315967417,1709305894909,-500.0,0.00022794,2]
[315967418,1709305894919,-2298.42,0.00022794,2]
[315967419,1709305894928,-1036.68,0.00022794,2]
[315967420,1709305894937,-500.0,0.00022794,2]
[315967421,1709305894947,-1315.55,0.00022794,2]
[315967422,1709305894956,-500.0,0.00022794,2]
[315967423,1709305894965,-500.0,0.00022794,2]
[315967424,1709305894975,-870.51,0.00022794,2]
[315967425,1709305894984,-693.44,0.00022794,2]
[315967426,1709305894994,-500.0,0.00022794,2]
[315967427,1709305895003,-895.66,0.00022794,2]
[315967428,1709305895013,-735.48,0.00022794,2]
[315967429,1709305895023,-5334.59,0.00022794,2]
[315967430,1709305895035,-881.39,0.00022794,2]
[315967431,1709305895045,-1134.58,0.00022794,2]
[315967432,1709305895055,-1102.85,0.00022794,2]
[315967433,1709305895065,-500.0,0.00022794,2]
[315967434,1709305895075,-772.72,0.00022794,2]
[315967435,1709305895086,-3217.72,0.00022794,2]
[315967436,1709305895095,-674.03,0.00022794,2]
[315967437,1709305895106,-734.83,0.00022794,2]
[315967438,1709305895116,-4071.64,0.00022794,2]
[315967439,1709305895126,-500.0,0.00022794,2]
[315967440,1709305895136,-1336.48,0.00022794,2]
[315967441,1709305895146,-500.0,0.00022794,2]
[315967442,1709305895156,-6633.72,0.00022794,2]
[315967443,1709305895166,-2034.0,0.00022794,2]
[315967444,1709305895175,-500.0,0.00022794,2]
[315967445,1709305895185,-653.13,0.00022794,2]
[315967446,1709305895196,-1007.25,0.00022794,2]